[Event "Titled Tuesday Blitz April 11 Early 2023"]
[White "Rustemov, Alexander"]
[Black "Ingebretsen, Jens E"]
[WhiteFideId "4119002"]
[BlackFideId "1522965"]
[WhiteElo "2888"]
[BlackElo "2213"]
[Result "1/2-1/2"]
[Round "03"]
[TimeControl "180+2"]
[Date "2023.04.11"]
[WhiteClock "0:00:09"]
[BlackClock "0:00:05"]

1. d4 {[%clk 0:03:00]}  Nf6 {[%clk 0:03:00]} 2. c4 {[%clk 0:03:01]}  e6 {[%clk 0:03:00]} 3. Nf3 {[%clk 0:03:02]}  d5 {[%clk 0:03:01]} 4. Nc3 {[%clk 0:03:02]}  c5 {[%clk 0:03:01]} 5. cxd5 {[%clk 0:03:00]}  Nxd5 {[%clk 0:03:02]} 6. g3 {[%clk 0:03:01]}  Nc6 {[%clk 0:03:02]} 7. Bg2 {[%clk 0:03:00]}  Nxc3 {[%clk 0:02:56]} 8. bxc3 {[%clk 0:03:01]}  cxd4 {[%clk 0:02:56]} 9. Nxd4 {[%clk 0:03:01]}  Nxd4 {[%clk 0:02:55]} 10. Qxd4 {[%clk 0:03:00]}  Qxd4 {[%clk 0:02:55]} 11. cxd4 {[%clk 0:03:00]}  Bb4+ {[%clk 0:02:55]} 12. Bd2 {[%clk 0:03:01]}  Bxd2+ {[%clk 0:02:55]} 13. Kxd2 {[%clk 0:03:01]}  Rb8 {[%clk 0:02:38]} 14. Rhc1 {[%clk 0:02:57]}  Kd8 {[%clk 0:02:25]} 15. a4 {[%clk 0:02:46]}  b6 {[%clk 0:02:18]} 16. a5 {[%clk 0:02:42]}  b5 {[%clk 0:02:14]} 17. Kc3 {[%clk 0:02:39]}  Bb7 {[%clk 0:02:08]} 18. Bxb7 {[%clk 0:02:34]}  Rxb7 {[%clk 0:02:09]} 19. Kb4 {[%clk 0:02:32]}  Kd7 {[%clk 0:02:08]} 20. a6 {[%clk 0:02:27]}  Rb6 {[%clk 0:02:06]} 21. Rc5 {[%clk 0:02:28]}  Rc8 {[%clk 0:01:56]} 22. Ra5 {[%clk 0:02:26]}  Rcc6 {[%clk 0:01:49]} 23. Raxb5 {[%clk 0:01:48]}  Rxa6 {[%clk 0:01:33]} 24. Rb7+ {[%clk 0:01:42]}  Ke8 {[%clk 0:01:33]} 25. Kc4 {[%clk 0:01:14]}  g6 {[%clk 0:01:01]} 26. e4 {[%clk 0:01:11]}  h5 {[%clk 0:00:53]} 27. f4 {[%clk 0:01:09]}  Rxc5+ {[%clk 0:00:45]} 28. Kxc5 {[%clk 0:01:07]}  Ra2 {[%clk 0:00:42]} 29. Kd6 {[%clk 0:00:59]}  Kf8 {[%clk 0:00:39]} 30. Ke5 {[%clk 0:00:43]}  Kg7 {[%clk 0:00:38]} 31. h4 {[%clk 0:00:38]}  a5 {[%clk 0:00:36]} 32. Ra7 {[%clk 0:00:34]}  a4 {[%clk 0:00:36]} 33. Kd6 {[%clk 0:00:24]}  a3 {[%clk 0:00:31]} 34. Ke7 {[%clk 0:00:24]}  Rd2 {[%clk 0:00:22]} 35. Ke8 {[%clk 0:00:20]}  Rxd4 {[%clk 0:00:20]} 36. Rxf7+ {[%clk 0:00:18]}  Kh6 {[%clk 0:00:20]} 37. Ra7 {[%clk 0:00:19]}  Rxe4 {[%clk 0:00:17]} 38. Kf7 {[%clk 0:00:19]}  Rb4 {[%clk 0:00:04]} 39. Rxa3 {[%clk 0:00:17]}  Rb7+ {[%clk 0:00:04]} 40. Kf6 {[%clk 0:00:17]}  Rb6 {[%clk 0:00:04]} 41. Re3 {[%clk 0:00:12]}  e5+ {[%clk 0:00:04]} 42. Kxe5 {[%clk 0:00:12]}  Rb5+ {[%clk 0:00:05]} 43. Kf6 {[%clk 0:00:12]}  Rb6+ {[%clk 0:00:06]} 44. Re6 {[%clk 0:00:12]}  Rb7 {[%clk 0:00:06]} 45. f5 {[%clk 0:00:09]}  gxf5 {[%clk 0:00:07]} 46. Kxf5+ {[%clk 0:00:09]}  Kg7 {[%clk 0:00:08]} 47. Rg6+ {[%clk 0:00:08]}  Kh7 {[%clk 0:00:08]} 48. Re6 {[%clk 0:00:07]}  Rb5+ {[%clk 0:00:08]} 49. Re5 {[%clk 0:00:07]}  Rb3 {[%clk 0:00:09]} 50. Kf4 {[%clk 0:00:07]}  Rb4+ {[%clk 0:00:09]} 51. Re4 {[%clk 0:00:06]}  Rb5 {[%clk 0:00:10]} 52. Re7+ {[%clk 0:00:06]}  Kg6 {[%clk 0:00:10]} 53. Re6+ {[%clk 0:00:06]}  Kg7 {[%clk 0:00:11]} 54. Re5 {[%clk 0:00:06]}  Rb4+ {[%clk 0:00:11]} 55. Kf3 {[%clk 0:00:07]}  Rb3+ {[%clk 0:00:11]} 56. Kf2 {[%clk 0:00:06]}  Rb2+ {[%clk 0:00:12]} 57. Kf3 {[%clk 0:00:05]}  Rb3+ {[%clk 0:00:13]} 58. Re3 {[%clk 0:00:05]}  Rb4 {[%clk 0:00:13]} 59. Re4 {[%clk 0:00:05]}  Rb3+ {[%clk 0:00:13]} 60. Kf4 {[%clk 0:00:06]}  Kf6 {[%clk 0:00:14]} 61. Rc4 {[%clk 0:00:06]}  Ra3 {[%clk 0:00:13]} 62. Rc6+ {[%clk 0:00:06]}  Kg7 {[%clk 0:00:13]} 63. Rc5 {[%clk 0:00:06]}  Kg6 {[%clk 0:00:14]} 64. Rc6+ {[%clk 0:00:06]}  Kg7 {[%clk 0:00:14]} 65. Rd6 {[%clk 0:00:07]}  Ra4+ {[%clk 0:00:14]} 66. Kf5 {[%clk 0:00:07]}  Ra5+ {[%clk 0:00:14]} 67. Ke4 {[%clk 0:00:05]}  Ra4+ {[%clk 0:00:15]} 68. Rd4 {[%clk 0:00:05]}  Ra5 {[%clk 0:00:16]} 69. Kf4 {[%clk 0:00:06]}  Kg6 {[%clk 0:00:15]} 70. Rd6+ {[%clk 0:00:06]}  Kg7 {[%clk 0:00:16]} 71. Re6 {[%clk 0:00:07]}  Rb5 {[%clk 0:00:16]} 72. Re5 {[%clk 0:00:07]}  Rb4+ {[%clk 0:00:16]} 73. Kg5 {[%clk 0:00:07]}  Rg4+ {[%clk 0:00:16]} 74. Kxh5 {[%clk 0:00:08]}  Rxg3 {[%clk 0:00:16]} 75. Re7+ {[%clk 0:00:07]}  Kh8 {[%clk 0:00:13]} 76. Kh6 {[%clk 0:00:08]}  Kg8 {[%clk 0:00:11]} 77. h5 {[%clk 0:00:07]}  Rg1 {[%clk 0:00:11]} 78. Re8+ {[%clk 0:00:07]}  Kf7 {[%clk 0:00:11]} 79. Ra8 {[%clk 0:00:08]}  Rg2 {[%clk 0:00:11]} 80. Ra6 {[%clk 0:00:09]}  Rg1 {[%clk 0:00:11]} 81. Rg6 {[%clk 0:00:09]}  Rh1 {[%clk 0:00:07]} 82. Rg2 {[%clk 0:00:09]}  Ra1 {[%clk 0:00:07]} 83. Kh7 {[%clk 0:00:09]}  Ra8 {[%clk 0:00:04]} 84. Rf2+ {[%clk 0:00:09]}  Ke6 {[%clk 0:00:04]} 85. h6 {[%clk 0:00:09]}  Ra7+ {[%clk 0:00:04]} 86. Kg6 {[%clk 0:00:10]}  Ra1 {[%clk 0:00:03]} 87. Re2+ {[%clk 0:00:10]}  Kd7 {[%clk 0:00:04]} 88. Rh2 {[%clk 0:00:11]}  Rg1+ {[%clk 0:00:03]} 89. Kf5 {[%clk 0:00:12]}  Rf1+ {[%clk 0:00:04]} 90. Ke5 {[%clk 0:00:11]}  Re1+ {[%clk 0:00:04]} 91. Kf6 {[%clk 0:00:10]}  Rf1+ {[%clk 0:00:05]} 92. Kg7 {[%clk 0:00:10]}  Rg1+ {[%clk 0:00:06]} 93. Kh8 {[%clk 0:00:11]}  Ke7 {[%clk 0:00:06]} 94. h7 {[%clk 0:00:11]}  Kf7 {[%clk 0:00:07]} 95. Rf2+ {[%clk 0:00:11]}  Ke7 {[%clk 0:00:07]} 96. Rf3 {[%clk 0:00:10]}  Ke8 {[%clk 0:00:07]} 97. Ra3 {[%clk 0:00:11]}  Kf7 {[%clk 0:00:07]} 98. Ra7+ {[%clk 0:00:10]}  Kf8 {[%clk 0:00:06]} 99. Ra8+ {[%clk 0:00:11]}  Kf7 {[%clk 0:00:07]} 100. Ra7+ {[%clk 0:00:11]}  Kf8 {[%clk 0:00:07]} 101. Ra6 {[%clk 0:00:11]}  Kf7 {[%clk 0:00:07]} 102. Ra5 {[%clk 0:00:12]}  Kf6 {[%clk 0:00:07]} 103. Ra8 {[%clk 0:00:11]}  Kf7 {[%clk 0:00:07]} 104. Rg8 {[%clk 0:00:11]}  Ra1 {[%clk 0:00:07]} 105. Rg2 {[%clk 0:00:12]}  Rh1 {[%clk 0:00:06]} 106. Rf2+ {[%clk 0:00:12]}  Ke7 {[%clk 0:00:07]} 107. Rf4 {[%clk 0:00:10]}  Rg1 {[%clk 0:00:05]} 108. Rf5 {[%clk 0:00:09]}  Rg2 {[%clk 0:00:05]} 109. Ra5 {[%clk 0:00:09]}  Kf7 {[%clk 0:00:05]} 110. Ra8 {[%clk 0:00:09]}  Rg1 {[%clk 0:00:05]} 1/2-1/2


[Site "https://www.chess.com"]

[Event "Titled Tuesday Blitz April 11 Early 2023"]
[White "Vysochin, Spartak"]
[Black "Kravtsiv, Martyn"]
[WhiteFideId "14103516"]
[BlackFideId "14113147"]
[WhiteElo "2367"]
[BlackElo "2695"]
[Result "0-1"]
[Round "03"]
[TimeControl "180+2"]
[Date "2023.04.11"]
[WhiteClock "0:00:02"]
[BlackClock "0:00:11"]

1. e4 {[%clk 0:02:55]}  e5 {[%clk 0:02:59]} 2. Nf3 {[%clk 0:02:54]}  Nc6 {[%clk 0:02:59]} 3. Nc3 {[%clk 0:02:53]}  Nf6 {[%clk 0:02:56]} 4. Bb5 {[%clk 0:02:51]}  Bd6 {[%clk 0:02:53]} 5. d3 {[%clk 0:02:24]}  a6 {[%clk 0:02:52]} 6. Bxc6 {[%clk 0:02:09]}  dxc6 {[%clk 0:02:51]} 7. O-O {[%clk 0:02:07]}  O-O {[%clk 0:02:50]} 8. Ne2 {[%clk 0:02:04]}  Nd7 {[%clk 0:02:38]} 9. Be3 {[%clk 0:01:55]}  Re8 {[%clk 0:02:37]} 10. h3 {[%clk 0:01:53]}  Nf8 {[%clk 0:02:35]} 11. Nh2 {[%clk 0:01:53]}  Ng6 {[%clk 0:02:22]} 12. Qd2 {[%clk 0:01:50]}  f6 {[%clk 0:02:13]} 13. Kh1 {[%clk 0:01:47]}  Be6 {[%clk 0:02:10]} 14. f4 {[%clk 0:01:45]}  exf4 {[%clk 0:02:08]} 15. Nxf4 {[%clk 0:01:46]}  Nxf4 {[%clk 0:01:57]} 16. Bxf4 {[%clk 0:01:47]}  Bf8 {[%clk 0:01:56]} 17. Rf3 {[%clk 0:01:43]}  Qd7 {[%clk 0:01:56]} 18. Rg3 {[%clk 0:01:41]}  Kh8 {[%clk 0:01:51]} 19. Rf1 {[%clk 0:01:38]}  c5 {[%clk 0:01:49]} 20. b3 {[%clk 0:01:36]}  Rad8 {[%clk 0:01:47]} 21. Qf2 {[%clk 0:01:34]}  b5 {[%clk 0:01:41]} 22. Bc1 {[%clk 0:01:02]}  c4 {[%clk 0:01:34]} 23. Bb2 {[%clk 0:01:01]}  cxd3 {[%clk 0:01:30]} 24. cxd3 {[%clk 0:01:01]}  Re7 {[%clk 0:01:07]} 25. d4 {[%clk 0:00:42]}  c6 {[%clk 0:01:02]} 26. Ng4 {[%clk 0:00:40]}  Rf7 {[%clk 0:01:00]} 27. Ne3 {[%clk 0:00:31]}  a5 {[%clk 0:00:44]} 28. Qf3 {[%clk 0:00:31]}  a4 {[%clk 0:00:42]} 29. Qh5 {[%clk 0:00:31]}  Qe8 {[%clk 0:00:25]} 30. d5 {[%clk 0:00:21]}  cxd5 {[%clk 0:00:23]} 31. exd5 {[%clk 0:00:19]}  Bc8 {[%clk 0:00:23]} 32. Rf4 {[%clk 0:00:13]}  Re7 {[%clk 0:00:17]} 33. Qh4 {[%clk 0:00:06]}  Rxe3 {[%clk 0:00:15]} 34. Rxf6 {[%clk 0:00:06]}  Rxg3 {[%clk 0:00:13]} 35. Qxg3 {[%clk 0:00:06]}  a3 {[%clk 0:00:13]} 36. Be5 {[%clk 0:00:04]}  Rxd5 {[%clk 0:00:12]} 37. Bc3 {[%clk 0:00:02]}  b4 {[%clk 0:00:11]} 0-1


[Site "https://www.chess.com"]

[Event "Titled Tuesday Blitz April 11 Early 2023"]
[White "Chernobay, Artem"]
[Black "Kuzubov, Yuriy"]
[WhiteFideId "4167406"]
[BlackFideId "14112906"]
[WhiteElo "2474"]
[BlackElo "2496"]
[Result "0-1"]
[Round "03"]
[TimeControl "180+2"]
[Date "2023.04.11"]
[WhiteClock "0:00:07"]
[BlackClock "0:00:19"]

1. e4 {[%clk 0:03:00]}  c5 {[%clk 0:02:59]} 2. Nf3 {[%clk 0:02:57]}  Nc6 {[%clk 0:02:59]} 3. Bb5 {[%clk 0:02:55]}  g6 {[%clk 0:02:58]} 4. Bxc6 {[%clk 0:02:54]}  bxc6 {[%clk 0:02:58]} 5. d3 {[%clk 0:02:51]}  Bg7 {[%clk 0:02:56]} 6. Qe2 {[%clk 0:02:47]}  d6 {[%clk 0:02:54]} 7. e5 {[%clk 0:02:41]}  Bg4 {[%clk 0:02:07]} 8. exd6 {[%clk 0:02:40]}  Qxd6 {[%clk 0:02:04]} 9. O-O {[%clk 0:02:25]}  Nf6 {[%clk 0:01:40]} 10. Nbd2 {[%clk 0:02:23]}  O-O {[%clk 0:01:40]} 11. h3 {[%clk 0:02:22]}  Bxf3 {[%clk 0:01:39]} 12. Qxf3 {[%clk 0:02:16]}  Nd5 {[%clk 0:01:27]} 13. Nc4 {[%clk 0:02:14]}  Qc7 {[%clk 0:01:20]} 14. Re1 {[%clk 0:02:11]}  Rab8 {[%clk 0:01:05]} 15. c3 {[%clk 0:01:41]}  e6 {[%clk 0:00:52]} 16. Re2 {[%clk 0:01:35]}  Rfd8 {[%clk 0:00:48]} 17. Bg5 {[%clk 0:01:33]}  Rd7 {[%clk 0:00:46]} 18. h4 {[%clk 0:01:20]}  h6 {[%clk 0:00:44]} 19. Bd2 {[%clk 0:01:20]}  Qd8 {[%clk 0:00:32]} 20. h5 {[%clk 0:00:58]}  g5 {[%clk 0:00:31]} 21. Rd1 {[%clk 0:00:42]}  Nb6 {[%clk 0:00:30]} 22. Na5 {[%clk 0:00:25]}  Rxd3 {[%clk 0:00:26]} 23. Nxc6 {[%clk 0:00:22]}  Rxf3 {[%clk 0:00:20]} 24. Nxd8 {[%clk 0:00:22]}  Rd3 {[%clk 0:00:20]} 25. Nc6 {[%clk 0:00:22]}  Rb7 {[%clk 0:00:20]} 26. Na5 {[%clk 0:00:08]}  Rbd7 {[%clk 0:00:20]} 27. Nb3 {[%clk 0:00:09]}  R7d5 {[%clk 0:00:19]} 28. Kf1 {[%clk 0:00:07]}  Nc4 {[%clk 0:00:19]} 29. Ke1 {[%clk 0:00:07]}  Nxb2 {[%clk 0:00:18]} 30. Rb1 {[%clk 0:00:07]}  Nc4 {[%clk 0:00:19]} 31. Be3 {[%clk 0:00:06]}  Bxc3+ {[%clk 0:00:19]} 32. Kf1 {[%clk 0:00:07]}  Rd1+ {[%clk 0:00:19]} 0-1


[Site "https://www.chess.com"]

[Event "Titled Tuesday Blitz April 11 Early 2023"]
[White "Vakhlamov, Igor L."]
[Black "Annaberdiyev, Meylis"]
[WhiteFideId "24126748"]
[BlackFideId "14000563"]
[WhiteElo "2400"]
[BlackElo "2416"]
[Result "1/2-1/2"]
[Round "03"]
[TimeControl "180+2"]
[Date "2023.04.11"]
[WhiteClock "0:00:14"]
[BlackClock "0:00:09"]

1. e4 {[%clk 0:02:59]}  c5 {[%clk 0:02:59]} 2. Nf3 {[%clk 0:02:59]}  Nc6 {[%clk 0:03:00]} 3. Nc3 {[%clk 0:03:00]}  e6 {[%clk 0:02:52]} 4. Bb5 {[%clk 0:03:00]}  Nd4 {[%clk 0:02:51]} 5. Bd3 {[%clk 0:03:00]}  Ne7 {[%clk 0:02:51]} 6. O-O {[%clk 0:03:01]}  Ndc6 {[%clk 0:02:52]} 7. Bb5 {[%clk 0:02:58]}  a6 {[%clk 0:02:36]} 8. Bxc6 {[%clk 0:02:59]}  Nxc6 {[%clk 0:02:37]} 9. d4 {[%clk 0:02:59]}  cxd4 {[%clk 0:02:36]} 10. Nxd4 {[%clk 0:03:00]}  d6 {[%clk 0:02:26]} 11. Nxc6 {[%clk 0:02:57]}  bxc6 {[%clk 0:02:25]} 12. Qh5 {[%clk 0:02:54]}  Be7 {[%clk 0:02:21]} 13. b3 {[%clk 0:02:51]}  O-O {[%clk 0:02:20]} 14. Bb2 {[%clk 0:02:52]}  e5 {[%clk 0:02:11]} 15. Rad1 {[%clk 0:02:51]}  Qe8 {[%clk 0:02:07]} 16. Ba3 {[%clk 0:02:46]}  c5 {[%clk 0:01:52]} 17. Nd5 {[%clk 0:02:46]}  Bd8 {[%clk 0:01:51]} 18. Ne3 {[%clk 0:02:39]}  Be7 {[%clk 0:01:50]} 19. Rd2 {[%clk 0:02:34]}  Be6 {[%clk 0:01:48]} 20. Rfd1 {[%clk 0:02:32]}  a5 {[%clk 0:01:47]} 21. Bb2 {[%clk 0:02:22]}  a4 {[%clk 0:01:46]} 22. Nf5 {[%clk 0:02:20]}  Bxf5 {[%clk 0:01:44]} 23. Qxf5 {[%clk 0:02:21]}  axb3 {[%clk 0:01:44]} 24. axb3 {[%clk 0:02:22]}  Qc8 {[%clk 0:01:42]} 25. Qf3 {[%clk 0:02:11]}  f5 {[%clk 0:01:40]} 26. exf5 {[%clk 0:02:12]}  Qxf5 {[%clk 0:01:39]} 27. Qxf5 {[%clk 0:02:01]}  Rxf5 {[%clk 0:01:39]} 28. g3 {[%clk 0:01:45]}  Kf7 {[%clk 0:01:36]} 29. Kg2 {[%clk 0:01:46]}  Ke6 {[%clk 0:01:36]} 30. Bc3 {[%clk 0:01:43]}  Ra3 {[%clk 0:01:15]} 31. Re2 {[%clk 0:01:22]}  g5 {[%clk 0:01:12]} 32. Red2 {[%clk 0:01:03]}  Rf8 {[%clk 0:01:03]} 33. Re2 {[%clk 0:01:00]}  h5 {[%clk 0:01:00]} 34. h3 {[%clk 0:01:00]}  Rf7 {[%clk 0:00:47]} 35. Rf1 {[%clk 0:00:58]}  Kd7 {[%clk 0:00:38]} 36. Ra1 {[%clk 0:00:51]}  Rxa1 {[%clk 0:00:37]} 37. Bxa1 {[%clk 0:00:52]}  Rf8 {[%clk 0:00:36]} 38. c4 {[%clk 0:00:48]}  Ra8 {[%clk 0:00:33]} 39. Bb2 {[%clk 0:00:48]}  Rb8 {[%clk 0:00:32]} 40. Re3 {[%clk 0:00:48]}  g4 {[%clk 0:00:29]} 41. hxg4 {[%clk 0:00:49]}  hxg4 {[%clk 0:00:30]} 42. f3 {[%clk 0:00:40]}  Bg5 {[%clk 0:00:24]} 43. Rd3 {[%clk 0:00:40]}  gxf3+ {[%clk 0:00:22]} 44. Kxf3 {[%clk 0:00:41]}  Ke6 {[%clk 0:00:23]} 45. Ke4 {[%clk 0:00:31]}  Rb4 {[%clk 0:00:16]} 46. g4 {[%clk 0:00:22]}  Bf4 {[%clk 0:00:13]} 47. Kf3 {[%clk 0:00:17]}  Rb7 {[%clk 0:00:10]} 48. Rd1 {[%clk 0:00:13]}  Rh7 {[%clk 0:00:10]} 49. Rd3 {[%clk 0:00:04]}  Rh3+ {[%clk 0:00:10]} 50. Ke4 {[%clk 0:00:05]}  Rh2 {[%clk 0:00:08]} 51. Bc3 {[%clk 0:00:05]}  Rg2 {[%clk 0:00:04]} 52. Kf3 {[%clk 0:00:05]}  Rg3+ {[%clk 0:00:05]} 53. Ke2 {[%clk 0:00:05]}  Rxg4 {[%clk 0:00:05]} 54. b4 {[%clk 0:00:06]}  cxb4 {[%clk 0:00:04]} 55. Bxb4 {[%clk 0:00:07]}  Rg2+ {[%clk 0:00:04]} 56. Kf1 {[%clk 0:00:07]}  Rg5 {[%clk 0:00:02]} 57. Bxd6 {[%clk 0:00:07]}  Kf5 {[%clk 0:00:02]} 58. c5 {[%clk 0:00:07]}  e4 {[%clk 0:00:02]} 59. Rd5+ {[%clk 0:00:07]}  Kg4 {[%clk 0:00:02]} 60. Rxg5+ {[%clk 0:00:08]}  Bxg5 {[%clk 0:00:02]} 61. Bf4 {[%clk 0:00:08]}  Bd8 {[%clk 0:00:03]} 62. Bd6 {[%clk 0:00:08]}  Kf5 {[%clk 0:00:03]} 63. Ke2 {[%clk 0:00:09]}  Ke6 {[%clk 0:00:03]} 64. Ke3 {[%clk 0:00:09]}  Kd5 {[%clk 0:00:04]} 65. Ke2 {[%clk 0:00:10]}  Ba5 {[%clk 0:00:04]} 66. Be7 {[%clk 0:00:10]}  Bb4 {[%clk 0:00:05]} 67. Ke3 {[%clk 0:00:10]}  Ba3 {[%clk 0:00:05]} 68. Ke2 {[%clk 0:00:09]}  Bxc5 {[%clk 0:00:05]} 69. Bg5 {[%clk 0:00:08]}  Bd6 {[%clk 0:00:04]} 70. Be3 {[%clk 0:00:08]}  Be5 {[%clk 0:00:05]} 71. Bg5 {[%clk 0:00:08]}  Bd4 {[%clk 0:00:06]} 72. Bf4 {[%clk 0:00:08]}  Ke6 {[%clk 0:00:06]} 73. Bg5 {[%clk 0:00:09]}  Kf5 {[%clk 0:00:07]} 74. Bd2 {[%clk 0:00:09]}  Be5 {[%clk 0:00:07]} 75. Be3 {[%clk 0:00:09]}  Bf4 {[%clk 0:00:08]} 76. Bd4 {[%clk 0:00:10]}  Kg4 {[%clk 0:00:08]} 77. Bc5 {[%clk 0:00:10]}  Kf5 {[%clk 0:00:07]} 78. Bd4 {[%clk 0:00:11]}  Be5 {[%clk 0:00:07]} 79. Bf2 {[%clk 0:00:11]}  Bf6 {[%clk 0:00:07]} 80. Be3 {[%clk 0:00:11]}  Ke5 {[%clk 0:00:07]} 81. Bf2 {[%clk 0:00:12]}  Kd5 {[%clk 0:00:08]} 82. Be3 {[%clk 0:00:13]}  Bd4 {[%clk 0:00:08]} 83. Bf4 {[%clk 0:00:13]}  Be5 {[%clk 0:00:08]} 84. Bg5 {[%clk 0:00:13]}  Bd4 {[%clk 0:00:09]} 85. Bf4 {[%clk 0:00:14]} 1/2-1/2


[Site "https://www.chess.com"]

[Event "Titled Tuesday Blitz April 11 Early 2023"]
[White "Svane, Frederik"]
[Black "Williams, Simon K"]
[WhiteFideId "12923044"]
[BlackFideId "404454"]
[WhiteElo "2502"]
[BlackElo "2468"]
[Result "1-0"]
[Round "03"]
[TimeControl "180+2"]
[Date "2023.04.11"]
[WhiteClock "0:01:05"]
[BlackClock "0:00:16"]

1. g3 {[%clk 0:03:00]}  f5 {[%clk 0:02:59]} 2. Bg2 {[%clk 0:02:58]}  Nf6 {[%clk 0:02:59]} 3. Nc3 {[%clk 0:02:58]}  e5 {[%clk 0:02:58]} 4. d4 {[%clk 0:02:56]}  e4 {[%clk 0:02:57]} 5. Bg5 {[%clk 0:02:53]}  c6 {[%clk 0:02:49]} 6. d5 {[%clk 0:02:50]}  h6 {[%clk 0:02:48]} 7. Bxf6 {[%clk 0:02:49]}  Qxf6 {[%clk 0:02:48]} 8. e3 {[%clk 0:02:47]}  b5 {[%clk 0:02:34]} 9. a3 {[%clk 0:02:44]}  Na6 {[%clk 0:02:32]} 10. Nge2 {[%clk 0:02:43]}  g5 {[%clk 0:02:29]} 11. h4 {[%clk 0:02:43]}  Bg7 {[%clk 0:02:28]} 12. Qd2 {[%clk 0:02:38]}  Rb8 {[%clk 0:02:21]} 13. g4 {[%clk 0:02:33]}  O-O {[%clk 0:01:24]} 14. gxf5 {[%clk 0:02:31]}  Qxf5 {[%clk 0:01:24]} 15. Nxe4 {[%clk 0:01:53]}  cxd5 {[%clk 0:01:22]} 16. N2g3 {[%clk 0:01:47]}  Qe5 {[%clk 0:01:21]} 17. Nc3 {[%clk 0:01:37]}  d4 {[%clk 0:00:49]} 18. Qxd4 {[%clk 0:01:28]}  Qxd4 {[%clk 0:00:49]} 19. exd4 {[%clk 0:01:29]}  Bxd4 {[%clk 0:00:50]} 20. Nge4 {[%clk 0:01:22]}  g4 {[%clk 0:00:26]} 21. O-O-O {[%clk 0:01:22]}  Bxf2 {[%clk 0:00:25]} 22. Rd6 {[%clk 0:01:22]}  Be3+ {[%clk 0:00:25]} 23. Kb1 {[%clk 0:01:21]}  Nc5 {[%clk 0:00:25]} 24. Nf6+ {[%clk 0:01:17]}  Rxf6 {[%clk 0:00:21]} 25. Rxf6 {[%clk 0:01:17]}  Rb6 {[%clk 0:00:18]} 26. Nd5 {[%clk 0:01:05]}  Bd4 {[%clk 0:00:15]} 27. Rxb6 {[%clk 0:01:03]}  axb6 {[%clk 0:00:15]} 28. Ne7+ {[%clk 0:01:04]}  Kf7 {[%clk 0:00:16]} 29. Nxc8 {[%clk 0:01:05]} 1-0


[Site "https://www.chess.com"]

[Event "Titled Tuesday Blitz April 11 Early 2023"]
[White "Poliakova, Varvara"]
[Black "Iturrizaga Bonelli, Eduardo"]
[WhiteFideId "13518313"]
[BlackFideId "3901211"]
[WhiteElo "2075"]
[BlackElo "2637"]
[Result "1-0"]
[Round "03"]
[TimeControl "180+2"]
[Date "2023.04.11"]
[WhiteClock "0:00:14"]
[BlackClock "0:00:03"]

1. e4 {[%clk 0:03:00]}  c5 {[%clk 0:03:00]} 2. Nf3 {[%clk 0:03:00]}  e6 {[%clk 0:03:00]} 3. d4 {[%clk 0:03:00]}  cxd4 {[%clk 0:03:01]} 4. Nxd4 {[%clk 0:03:01]}  a6 {[%clk 0:03:02]} 5. Nc3 {[%clk 0:02:59]}  b5 {[%clk 0:03:02]} 6. g3 {[%clk 0:02:57]}  Bb7 {[%clk 0:03:02]} 7. Bg2 {[%clk 0:02:57]}  h5 {[%clk 0:03:02]} 8. h4 {[%clk 0:02:57]}  Nf6 {[%clk 0:02:53]} 9. a3 {[%clk 0:02:49]}  d6 {[%clk 0:02:43]} 10. Bg5 {[%clk 0:02:47]}  Nbd7 {[%clk 0:02:42]} 11. O-O {[%clk 0:02:43]}  Qc7 {[%clk 0:02:39]} 12. Re1 {[%clk 0:02:35]}  Be7 {[%clk 0:02:37]} 13. Nd5 {[%clk 0:02:20]}  exd5 {[%clk 0:02:24]} 14. exd5 {[%clk 0:02:21]}  Kf8 {[%clk 0:02:24]} 15. Nf5 {[%clk 0:02:17]}  Ne5 {[%clk 0:02:12]} 16. Nxe7 {[%clk 0:02:14]}  Qxe7 {[%clk 0:02:04]} 17. f4 {[%clk 0:02:14]}  Rd8 {[%clk 0:01:55]} 18. fxe5 {[%clk 0:02:13]}  dxe5 {[%clk 0:01:56]} 19. Qe2 {[%clk 0:02:07]}  Re8 {[%clk 0:01:33]} 20. d6 {[%clk 0:02:05]}  Qxd6 {[%clk 0:01:33]} 21. Bxb7 {[%clk 0:02:05]}  Qb6+ {[%clk 0:01:33]} 22. Qe3 {[%clk 0:01:59]}  Qxb7 {[%clk 0:01:32]} 23. Qc5+ {[%clk 0:01:59]}  Kg8 {[%clk 0:01:14]} 24. Rxe5 {[%clk 0:01:57]}  Rc8 {[%clk 0:00:50]} 25. Qe7 {[%clk 0:01:31]}  Qxe7 {[%clk 0:00:19]} 26. Rxe7 {[%clk 0:01:32]}  Ng4 {[%clk 0:00:19]} 27. Rd1 {[%clk 0:01:26]}  f6 {[%clk 0:00:11]} 28. Bf4 {[%clk 0:01:25]}  Kh7 {[%clk 0:00:10]} 29. Rdd7 {[%clk 0:01:24]}  Rhg8 {[%clk 0:00:11]} 30. Rc7 {[%clk 0:01:24]}  Rcd8 {[%clk 0:00:11]} 31. Rcd7 {[%clk 0:01:18]}  Rc8 {[%clk 0:00:09]} 32. c3 {[%clk 0:01:18]}  Kg6 {[%clk 0:00:09]} 33. Kg2 {[%clk 0:01:16]}  Rc4 {[%clk 0:00:07]} 34. Kf3 {[%clk 0:01:14]}  a5 {[%clk 0:00:07]} 35. Rd4 {[%clk 0:00:46]}  Rc5 {[%clk 0:00:07]} 36. Rc7 {[%clk 0:00:36]}  Rf5 {[%clk 0:00:07]} 37. Kg2 {[%clk 0:00:32]}  a4 {[%clk 0:00:07]} 38. Re7 {[%clk 0:00:31]}  Rc5 {[%clk 0:00:07]} 39. Rdd7 {[%clk 0:00:30]}  Rc4 {[%clk 0:00:06]} 40. Kf3 {[%clk 0:00:30]}  Rc5 {[%clk 0:00:07]} 41. Kg2 {[%clk 0:00:30]}  Rf5 {[%clk 0:00:06]} 42. Rd6 {[%clk 0:00:27]}  Rc8 {[%clk 0:00:05]} 43. Rdd7 {[%clk 0:00:27]}  Rg8 {[%clk 0:00:06]} 44. Rd6 {[%clk 0:00:27]}  Kh7 {[%clk 0:00:05]} 45. Rdd7 {[%clk 0:00:27]}  Rc5 {[%clk 0:00:05]} 46. Rc7 {[%clk 0:00:25]}  Rd5 {[%clk 0:00:05]} 47. Rcd7 {[%clk 0:00:26]}  Rxd7 {[%clk 0:00:05]} 48. Rxd7 {[%clk 0:00:27]}  Re8 {[%clk 0:00:05]} 49. Kf3 {[%clk 0:00:24]}  Nh2+ {[%clk 0:00:05]} 50. Kf2 {[%clk 0:00:23]}  Ng4+ {[%clk 0:00:05]} 51. Kf3 {[%clk 0:00:24]}  Re1 {[%clk 0:00:04]} 52. Rb7 {[%clk 0:00:22]}  Rf1+ {[%clk 0:00:03]} 53. Ke4 {[%clk 0:00:21]}  Kg6 {[%clk 0:00:03]} 54. Rxb5 {[%clk 0:00:21]}  Rd1 {[%clk 0:00:04]} 55. c4 {[%clk 0:00:20]}  Nf2+ {[%clk 0:00:03]} 56. Ke3 {[%clk 0:00:20]}  Ng4+ {[%clk 0:00:04]} 57. Ke2 {[%clk 0:00:20]}  Rd4 {[%clk 0:00:04]} 58. c5 {[%clk 0:00:20]}  Kf7 {[%clk 0:00:03]} 59. c6 {[%clk 0:00:20]}  Rc4 {[%clk 0:00:03]} 60. Rb7+ {[%clk 0:00:19]}  Ke6 {[%clk 0:00:03]} 61. c7 {[%clk 0:00:20]}  Ne5 {[%clk 0:00:03]} 62. Rb6+ {[%clk 0:00:16]}  Kd5 {[%clk 0:00:03]} 63. Rb5+ {[%clk 0:00:15]}  Ke4 {[%clk 0:00:03]} 64. Rb4 {[%clk 0:00:14]} 1-0


[Site "https://www.chess.com"]